[Event "Live Chess"]
[Site "Chess.com"]
[Date "2023.05.21"]
[Round "-"]
[White "Denz14"]
[Black "OceanFloater"]
[Result "1-0"]
[WhiteElo "1038"]
[BlackElo "1014"]
[TimeControl "300"]
[EndTime "1:38:37 PDT"]
[Termination "Denz14 won by resignation"]

1. e4 {[%clk 0:04:59.1]} 1... c6 {[%clk 0:04:58.7]} 2. d4 {[%clk 0:04:57]} 2...
d5 {[%clk 0:04:58]} 3. e5 {[%clk 0:04:56.3]} 3... Bf5 {[%clk 0:04:55.8]} 4. Bd3
{[%clk 0:04:54.6]} 4... Bxd3 {[%clk 0:04:54.4]} 5. Qxd3 {[%clk 0:04:53.6]} 5...
e6 {[%clk 0:04:53.9]} 6. c3 {[%clk 0:04:52.4]} 6... c5 {[%clk 0:04:52.2]} 7. Nf3
{[%clk 0:04:50.1]} 7... Nc6 {[%clk 0:04:49.8]} 8. O-O {[%clk 0:04:48.3]} 8... c4
{[%clk 0:04:45.6]} 9. Qc2 {[%clk 0:04:39.7]} 9... Nge7 {[%clk 0:04:43.9]} 10.
Bg5 {[%clk 0:04:37.8]} 10... g6 {[%clk 0:04:39.9]} 11. Bf6 {[%clk 0:04:31.7]}
11... Rg8 {[%clk 0:04:36.5]} 12. Ng5 {[%clk 0:04:27.3]} 12... Bg7 {[%clk
0:04:32.7]} 13. Nxh7 {[%clk 0:04:19]} 13... Bxf6 {[%clk 0:04:30.8]} 14. Nxf6+
{[%clk 0:04:17.7]} 14... Kf8 {[%clk 0:04:29.1]} 15. Nxg8 {[%clk 0:04:16.4]}
15... Kxg8 {[%clk 0:04:28.5]} 16. Qe2 {[%clk 0:04:13.7]} 16... Kg7 {[%clk
0:04:26.8]} 17. f4 {[%clk 0:04:10.7]} 17... Nf5 {[%clk 0:04:24.9]} 18. g4 {[%clk
0:04:04.9]} 18... Nh6 {[%clk 0:04:18.2]} 19. f5 {[%clk 0:03:58]} 19... exf5
{[%clk 0:04:14.8]} 20. gxf5 {[%clk 0:03:55.6]} 20... Nxf5 {[%clk 0:04:10]} 21.
Qg4 {[%clk 0:03:49.9]} 21... Nce7 {[%clk 0:04:06.3]} 22. Nd2 {[%clk 0:03:46.3]}
22... Qb6 {[%clk 0:03:55.9]} 23. Rab1 {[%clk 0:03:39.1]} 23... Rh8 {[%clk
0:03:53.5]} 24. Rf2 {[%clk 0:03:33.4]} 24... Rh4 {[%clk 0:03:50.2]} 25. Qg5
{[%clk 0:03:18.6]} 25... Rh5 {[%clk 0:03:35.4]} 26. Qg4 {[%clk 0:03:15.8]} 26...
Rh4 {[%clk 0:03:34]} 27. Qg5 {[%clk 0:03:13.6]} 27... Rh5 {[%clk 0:03:33.2]} 28.
Qg4 {[%clk 0:03:12.5]} 28... Ne3 {[%clk 0:03:27.7]} 29. Qf3 {[%clk 0:02:40.9]}
29... Rg5+ {[%clk 0:03:20]} 30. Kh1 {[%clk 0:02:38.8]} 30... N7f5 {[%clk
0:03:06.7]} 31. Nf1 {[%clk 0:02:23.1]} 31... Qe6 {[%clk 0:03:03.5]} 32. Nxe3
{[%clk 0:02:18.5]} 32... Nxe3 {[%clk 0:03:01.6]} 33. Qxe3 {[%clk 0:02:14]} 33...
Qg4 {[%clk 0:02:58.5]} 34. Qg3 {[%clk 0:02:06.1]} 34... Qe4+ {[%clk 0:02:52.7]}
35. Qf3 {[%clk 0:01:58.8]} 35... Qg4 {[%clk 0:02:48.9]} 36. Rff1 {[%clk
0:01:58.7]} 36... Qxf3+ {[%clk 0:02:47.2]} 37. Rxf3 {[%clk 0:01:57.6]} 37... Rf5
{[%clk 0:02:36.7]} 38. Rxf5 {[%clk 0:01:51.4]} 38... gxf5 {[%clk 0:02:35.7]} 39.
Rf1 {[%clk 0:01:49.2]} 39... Kg6 {[%clk 0:02:34.9]} 40. Kg2 {[%clk 0:01:48.4]}
40... Kg5 {[%clk 0:02:33.6]} 41. Kf3 {[%clk 0:01:47.5]} 41... a6 {[%clk
0:02:31.4]} 42. Rg1+ {[%clk 0:01:46.3]} 42... Kh5 {[%clk 0:02:26]} 43. Rg8
{[%clk 0:01:42.8]} 43... b5 {[%clk 0:02:22.1]} 44. Kf4 {[%clk 0:01:29.8]} 44...
Kh6 {[%clk 0:02:20.2]} 45. Kxf5 {[%clk 0:01:27.4]} 45... Kh7 {[%clk 0:02:19.3]}
46. Rg3 {[%clk 0:01:22.8]} 46... Kh6 {[%clk 0:02:18.2]} 47. Kf6 {[%clk
0:01:19.6]} 47... Kh5 {[%clk 0:02:16.5]} 48. Rh3+ {[%clk 0:01:18.7]} 48... Kg4
{[%clk 0:02:14.5]} 49. Rh5 {[%clk 0:01:15.8]} 49... Kxh5 {[%clk 0:02:13.4]} 50.
Kxf7 {[%clk 0:01:14.8]} 50... Kg5 {[%clk 0:02:12.4]} 51. e6 {[%clk 0:01:14]}
51... Kf5 {[%clk 0:02:11.9]} 52. e7 {[%clk 0:01:13.2]} 52... Ke4 {[%clk
0:02:11.3]} 53. e8=Q+ {[%clk 0:01:11.4]} 53... Kd3 {[%clk 0:02:11]} 54. h3
{[%clk 0:01:06.6]} 54... a5 {[%clk 0:02:09.7]} 55. h4 {[%clk 0:01:03.5]} 55...
b4 {[%clk 0:02:08.7]} 56. cxb4 {[%clk 0:01:01.3]} 56... axb4 {[%clk 0:02:07.8]}
57. h5 {[%clk 0:00:58.9]} 57... Kxd4 {[%clk 0:02:07.2]} 58. h6 {[%clk
0:00:52.3]} 58... c3 {[%clk 0:02:04.9]} 59. bxc3+ {[%clk 0:00:49.5]} 59... bxc3
{[%clk 0:02:03.9]} 60. Qh8+ {[%clk 0:00:47.9]} 60... Kd3 {[%clk 0:02:02.6]} 61.
Qxc3+ {[%clk 0:00:44.2]} 61... Kxc3 {[%clk 0:02:01.7]} 62. h7 {[%clk 0:00:43.1]}
62... Kb2 {[%clk 0:02:00.8]} 63. a4 {[%clk 0:00:41.5]} 63... Kb3 {[%clk
0:01:59.2]} 64. a5 {[%clk 0:00:40.3]} 64... Kb4 {[%clk 0:01:58.9]} 65. a6 {[%clk
0:00:39.3]} 65... d4 {[%clk 0:01:58.8]} 66. h8=Q {[%clk 0:00:37.5]} 66... d3
{[%clk 0:01:58]} 67. Qb2+ {[%clk 0:00:33.7]} 67... Kc4 {[%clk 0:01:56.6]} 68. a7
{[%clk 0:00:32.3]} 68... d2 {[%clk 0:01:55]} 69. Qxd2 {[%clk 0:00:30.8]} 1-0

[Event "Live Chess"]
[Site "Chess.com"]
[Date "2023.05.21"]
[Round "-"]
[White "WelshTiger"]
[Black "SteveValentine83"]
[Result "1-0"]
[WhiteElo "2349"]
[BlackElo "1532"]
[TimeControl "300"]
[EndTime "1:38:49 PDT"]
[Termination "WelshTiger won on time"]

1. e4 {[%clk 0:04:51.9]} 1... d5 {[%clk 0:04:58.9]} 2. exd5 {[%clk 0:04:50.5]}
2... Nf6 {[%clk 0:04:58.5]} 3. Bb5+ {[%clk 0:04:48.1]} 3... Bd7 {[%clk
0:04:56.5]} 4. Bc4 {[%clk 0:04:47.5]} 4... c6 {[%clk 0:04:53.4]} 5. dxc6 {[%clk
0:04:43.3]} 5... Nxc6 {[%clk 0:04:52.6]} 6. Nf3 {[%clk 0:04:39.3]} 6... g6
{[%clk 0:04:50.7]} 7. d4 {[%clk 0:04:35.5]} 7... e6 {[%clk 0:04:44.2]} 8. c3
{[%clk 0:04:34.9]} 8... Bg7 {[%clk 0:04:43.3]} 9. O-O {[%clk 0:04:33]} 9... O-O
{[%clk 0:04:42.8]} 10. Bg5 {[%clk 0:04:31.5]} 10... Qb6 {[%clk 0:04:37.8]} 11.
Qb3 {[%clk 0:04:25]} 11... Qxb3 {[%clk 0:04:31.9]} 12. Bxb3 {[%clk 0:04:22.6]}
12... Ne4 {[%clk 0:04:30.2]} 13. Be3 {[%clk 0:04:20.9]} 13... e5 {[%clk
0:04:16.9]} 14. Bd5 {[%clk 0:04:02.2]} 14... exd4 {[%clk 0:03:58.8]} 15. cxd4
{[%clk 0:04:00.8]} 15... Nf6 {[%clk 0:03:51.3]} 16. Bb3 {[%clk 0:03:56.1]} 16...
Na5 {[%clk 0:03:34.1]} 17. Nc3 {[%clk 0:03:47.6]} 17... Nxb3 {[%clk 0:03:32.1]}
18. axb3 {[%clk 0:03:47.4]} 18... a6 {[%clk 0:03:28.8]} 19. Ne5 {[%clk
0:03:46.6]} 19... Bf5 {[%clk 0:03:25.1]} 20. h3 {[%clk 0:03:35.5]} 20... Rfd8
{[%clk 0:03:09.5]} 21. b4 {[%clk 0:03:31.4]} 21... Nd5 {[%clk 0:03:00.8]} 22. g4
{[%clk 0:03:19.4]} 22... Be6 {[%clk 0:02:50.3]} 23. Nxd5 {[%clk 0:03:09.8]}
23... Rxd5 {[%clk 0:02:46.3]} 24. f4 {[%clk 0:03:02.4]} 24... Bxe5 {[%clk
0:02:28.5]} 25. fxe5 {[%clk 0:03:01]} 25... Rb5 {[%clk 0:02:27.4]} 26. Bd2
{[%clk 0:02:52.3]} 26... Rc8 {[%clk 0:02:25.5]} 27. Bc3 {[%clk 0:02:51.6]} 27...
Bd5 {[%clk 0:01:57.5]} 28. Rf6 {[%clk 0:02:49.4]} 28... Rc6 {[%clk 0:01:44.9]}
29. g5 {[%clk 0:02:47.6]} 29... Rxf6 {[%clk 0:01:32.5]} 30. gxf6 {[%clk
0:02:46.8]} 30... Rb6 {[%clk 0:01:26.9]} 31. Kf2 {[%clk 0:02:45.3]} 31... Kf8
{[%clk 0:01:17.3]} 32. Ke3 {[%clk 0:02:41.8]} 32... Ke8 {[%clk 0:01:10.4]} 33.
h4 {[%clk 0:02:40.7]} 33... h6 {[%clk 0:01:09]} 34. Ra5 {[%clk 0:02:38.7]} 34...
Rb5 {[%clk 0:01:03.9]} 35. Ra1 {[%clk 0:02:33.4]} 35... Kd7 {[%clk 0:01:01.8]}
36. Kf4 {[%clk 0:02:22.2]} 36... Ke6 {[%clk 0:00:58.9]} 37. Rg1 {[%clk
0:02:19.4]} 37... Rb6 {[%clk 0:00:41.6]} 38. Rg3 {[%clk 0:02:14.8]} 38... Rc6
{[%clk 0:00:35.5]} 39. Ke3 {[%clk 0:02:13.4]} 39... b6 {[%clk 0:00:30.3]} 40.
Kd3 {[%clk 0:02:11.6]} 40... b5 {[%clk 0:00:28.3]} 41. Rg1 {[%clk 0:02:09.1]}
41... Bc4+ {[%clk 0:00:26.2]} 42. Kd2 {[%clk 0:02:04.1]} 42... Kd5 {[%clk
0:00:25.2]} 43. Re1 {[%clk 0:02:01.6]} 43... Ke6 {[%clk 0:00:23.3]} 44. Rg1
{[%clk 0:01:53.4]} 44... Kf5 {[%clk 0:00:21.5]} 45. Ke3 {[%clk 0:01:51.8]} 45...
Ke6 {[%clk 0:00:19.7]} 46. Bd2 {[%clk 0:01:47.6]} 46... h5 {[%clk 0:00:17.2]}
47. Rc1 {[%clk 0:01:38.2]} 47... Kf5 {[%clk 0:00:15.3]} 48. Bc3 {[%clk
0:01:35.1]} 48... Kg4 {[%clk 0:00:13.2]} 49. Rh1 {[%clk 0:01:33.9]} 49... Kf5
{[%clk 0:00:12.2]} 50. Rf1+ {[%clk 0:01:27.7]} 50... Ke6 {[%clk 0:00:11.3]} 51.
Kf4 {[%clk 0:01:25.9]} 51... Bd5 {[%clk 0:00:09.8]} 52. Kg5 {[%clk 0:01:25.2]}
52... Kd7 {[%clk 0:00:06.7]} 53. Ra1 {[%clk 0:01:21.5]} 53... Kc7 {[%clk
0:00:05]} 54. Kh6 {[%clk 0:01:20.5]} 54... Kd7 {[%clk 0:00:03.6]} 55. Kg7 {[%clk
0:01:19.8]} 55... Kc7 {[%clk 0:00:02.8]} 56. Re1 {[%clk 0:01:13.1]} 56... Kd7
{[%clk 0:00:02]} 57. Kf8 {[%clk 0:01:11.9]} 57... Re6 {[%clk 0:00:00.1]} 58.
Kxf7 {[%clk 0:01:07]} 1-0

[Event "Live Chess"]
[Site "Chess.com"]
[Date "2023.05.21"]
[Round "-"]
[White "EPotapov05"]
[Black "AyannaTang"]
[Result "1-0"]
[WhiteElo "1389"]
[BlackElo "212"]
[TimeControl "300"]
[EndTime "1:38:52 PDT"]
[Termination "EPotapov05 won by checkmate"]

1. d4 {[%clk 0:04:52.6]} 1... d5 {[%clk 0:04:55.5]} 2. c4 {[%clk 0:04:50.8]}
2... e5 {[%clk 0:04:54]} 3. dxe5 {[%clk 0:04:47.6]} 3... dxc4 {[%clk 0:04:52.5]}
4. Qxd8+ {[%clk 0:04:44.2]} 4... Kxd8 {[%clk 0:04:44.4]} 5. e3 {[%clk
0:04:44.1]} 5... b5 {[%clk 0:04:40.3]} 6. a4 {[%clk 0:04:42.1]} 6... a5 {[%clk
0:04:38]} 7. axb5 {[%clk 0:04:39.8]} 7... Nd7 {[%clk 0:04:34.1]} 8. Bxc4 {[%clk
0:04:38.4]} 8... Nxe5 {[%clk 0:04:32.4]} 9. Bd5 {[%clk 0:04:34.6]} 9... Bb4+
{[%clk 0:04:26.1]} 10. Bd2 {[%clk 0:04:31.9]} 10... Bxd2+ {[%clk 0:04:24.7]} 11.
Nxd2 {[%clk 0:04:30.1]} 11... c5 {[%clk 0:04:02.6]} 12. Bxa8 {[%clk 0:04:26.3]}
12... c4 {[%clk 0:04:00.1]} 13. Rxa5 {[%clk 0:04:22]} 13... c3 {[%clk
0:03:56.1]} 14. bxc3 {[%clk 0:04:20.2]} 14... Nf6 {[%clk 0:03:51.4]} 15. Ngf3
{[%clk 0:04:19.1]} 15... Nxf3+ {[%clk 0:03:49.6]} 16. Nxf3 {[%clk 0:04:17]}
16... Nd5 {[%clk 0:03:48]} 17. Bxd5 {[%clk 0:04:15.5]} 17... Re8 {[%clk
0:03:42.6]} 18. Ke2 {[%clk 0:04:10.4]} 18... Re7 {[%clk 0:03:31.2]} 19. Rd1
{[%clk 0:04:08]} 19... Rc7 {[%clk 0:03:28.6]} 20. Bxf7+ {[%clk 0:04:04.7]} 20...
Ke7 {[%clk 0:03:23.4]} 21. Bd5 {[%clk 0:03:50.4]} 21... Rxc3 {[%clk 0:03:20]}
22. b6 {[%clk 0:03:46.8]} 22... h5 {[%clk 0:03:08.9]} 23. Rb1 {[%clk 0:03:45.6]}
23... Rc2+ {[%clk 0:03:05.7]} 24. Nd2 {[%clk 0:03:44.2]} 24... Kd6 {[%clk
0:02:50.4]} 25. b7 {[%clk 0:03:42.9]} 25... Bxb7 {[%clk 0:02:49.3]} 26. Bxb7
{[%clk 0:03:41.6]} 26... Rc6 {[%clk 0:02:41.4]} 27. Bxc6 {[%clk 0:03:40.1]}
27... Kxc6 {[%clk 0:02:40.7]} 28. Rb4 {[%clk 0:03:33.6]} 28... Kd6 {[%clk
0:02:37.6]} 29. Ne4+ {[%clk 0:03:29.7]} 29... Kc6 {[%clk 0:02:36.2]} 30. Rc5+
{[%clk 0:03:25.9]} 30... Kd7 {[%clk 0:02:34.1]} 31. Rb6 {[%clk 0:03:22.9]} 31...
Ke7 {[%clk 0:02:30.8]} 32. Rc7+ {[%clk 0:03:20.7]} 32... Kd8 {[%clk 0:02:29]}
33. Rxg7 {[%clk 0:03:17.8]} 33... Kc8 {[%clk 0:02:26.7]} 34. Rh6 {[%clk
0:03:16.1]} 34... Kd8 {[%clk 0:02:23.2]} 35. Rh8# {[%clk 0:03:15.1]} 1-0

[Event "Live Chess"]
[Site "Chess.com"]
[Date "2023.05.21"]
[Round "-"]
[White "Delacorta"]
[Black "ProfPoisson"]
[Result "0-1"]
[WhiteElo "1424"]
[BlackElo "1207"]
[TimeControl "300"]
[EndTime "1:38:56 PDT"]
[Termination "ProfPoisson won by checkmate"]

1. d4 {[%clk 0:04:57.9]} 1... e6 {[%clk 0:04:57.4]} 2. Nf3 {[%clk 0:04:57.1]}
2... f5 {[%clk 0:04:52.3]} 3. Bg5 {[%clk 0:04:44.5]} 3... Be7 {[%clk 0:04:43.8]}
4. Bxe7 {[%clk 0:04:43.4]} 4... Qxe7 {[%clk 0:04:40.3]} 5. Nbd2 {[%clk
0:04:35.2]} 5... Nf6 {[%clk 0:04:38]} 6. e3 {[%clk 0:04:28.2]} 6... O-O {[%clk
0:04:29.2]} 7. Be2 {[%clk 0:04:27.2]} 7... b6 {[%clk 0:04:25.3]} 8. Ne5 {[%clk
0:04:03.1]} 8... d6 {[%clk 0:04:18.3]} 9. Bf3 {[%clk 0:03:49.8]} 9... Ne4 {[%clk
0:03:49.1]} 10. Nxe4 {[%clk 0:03:38.1]} 10... dxe5 {[%clk 0:03:44.4]} 11. Nd2
{[%clk 0:03:08.8]} 11... e4 {[%clk 0:03:41.7]} 12. Be2 {[%clk 0:03:05.8]} 12...
Ba6 {[%clk 0:03:37.3]} 13. Bxa6 {[%clk 0:03:04]} 13... Nxa6 {[%clk 0:03:34.7]}
14. a3 {[%clk 0:03:02.8]} 14... c5 {[%clk 0:03:30.4]} 15. Qe2 {[%clk 0:03:01.4]}
15... Nc7 {[%clk 0:03:27]} 16. dxc5 {[%clk 0:02:44.8]} 16... Qxc5 {[%clk
0:03:21.2]} 17. Nb3 {[%clk 0:02:43.1]} 17... Qe5 {[%clk 0:03:08.7]} 18. O-O-O
{[%clk 0:02:37.5]} 18... Rfd8 {[%clk 0:03:03.6]} 19. Nd4 {[%clk 0:02:34.5]}
19... Rac8 {[%clk 0:02:47.2]} 20. Nc6 {[%clk 0:02:31.4]} 20... Rxd1+ {[%clk
0:02:44.6]} 21. Rxd1 {[%clk 0:02:30.1]} 21... Qf6 {[%clk 0:02:28.5]} 22. Rd7
{[%clk 0:02:17.2]} 22... Nd5 {[%clk 0:01:05.7]} 23. Nxa7 {[%clk 0:01:43.3]}
23... Rc7 {[%clk 0:00:42.6]} 24. Rxc7 {[%clk 0:01:37.7]} 24... Nxc7 {[%clk
0:00:40.4]} 25. Qc4 {[%clk 0:01:28.5]} 25... Nd5 {[%clk 0:00:33.8]} 26. Qc8+
{[%clk 0:01:21.7]} 26... Kf7 {[%clk 0:00:29.8]} 27. Qd7+ {[%clk 0:01:12.6]}
27... Kg6 {[%clk 0:00:28]} 28. Nc6 {[%clk 0:01:07.5]} 28... f4 {[%clk
0:00:23.4]} 29. Qe8+ {[%clk 0:01:00]} 29... Kh6 {[%clk 0:00:20.9]} 30. Nd4
{[%clk 0:00:25.2]} 30... fxe3 {[%clk 0:00:19.2]} 31. Qxe6 {[%clk 0:00:23.9]}
31... Qxe6 {[%clk 0:00:16.4]} 32. Nxe6 {[%clk 0:00:22.1]} 32... exf2 {[%clk
0:00:16.3]} 33. Kd2 {[%clk 0:00:17.1]} 33... f1=Q {[%clk 0:00:15.2]} 34. c3
{[%clk 0:00:13.8]} 34... e3+ {[%clk 0:00:14.1]} 35. Kc2 {[%clk 0:00:11.9]} 35...
e2 {[%clk 0:00:10.6]} 36. Kb3 {[%clk 0:00:11.8]} 36... e1=Q {[%clk 0:00:08.9]}
37. Nd4 {[%clk 0:00:11.7]} 37... Qe8 {[%clk 0:00:06]} 38. Nb5 {[%clk 0:00:08.3]}
38... Qd1+ {[%clk 0:00:04.6]} 39. Ka2 {[%clk 0:00:08.1]} 39... Qxb5 {[%clk
0:00:02.3]} 40. a4 {[%clk 0:00:07]} 40... Qbb3# {[%clk 0:00:00.3]} 0-1

[Event "Live Chess"]
[Site "Chess.com"]
[Date "2023.05.21"]
[Round "-"]
[White "rasrae1364"]
[Black "Argrath"]
[Result "1-0"]
[WhiteElo "1729"]
[BlackElo "1469"]
[TimeControl "300"]
[EndTime "1:39:00 PDT"]
[Termination "rasrae1364 won by resignation"]

1. e4 {[%clk 0:04:52.4]} 1... c6 {[%clk 0:04:58.7]} 2. d4 {[%clk 0:04:48.3]}
2... d5 {[%clk 0:04:57.4]} 3. e5 {[%clk 0:04:44.5]} 3... c5 {[%clk 0:04:55.3]}
4. Nf3 {[%clk 0:04:38.9]} 4... Nc6 {[%clk 0:04:49.6]} 5. Bb5 {[%clk 0:04:34.8]}
5... Qa5+ {[%clk 0:04:35.9]} 6. Nc3 {[%clk 0:04:29.1]} 6... Bg4 {[%clk
0:04:28.2]} 7. dxc5 {[%clk 0:04:23.9]} 7... d4 {[%clk 0:04:16.2]} 8. Qxd4 {[%clk
0:04:19.5]} 8... Rd8 {[%clk 0:04:06.7]} 9. Qxg4 {[%clk 0:04:14.5]} 9... a6
{[%clk 0:03:59.3]} 10. Bxc6+ {[%clk 0:04:09.1]} 10... bxc6 {[%clk 0:03:57.9]}
11. O-O {[%clk 0:04:01.6]} 11... e6 {[%clk 0:03:54.4]} 12. Ne4 {[%clk
0:03:57.5]} 12... Nh6 {[%clk 0:03:51.4]} 13. Bxh6 {[%clk 0:03:52.2]} 13... gxh6
{[%clk 0:03:49.7]} 14. Nf6+ {[%clk 0:03:47.6]} 14... Ke7 {[%clk 0:03:46.9]} 15.
b4 {[%clk 0:03:43.2]} 1-0

[Event "Live Chess"]
[Site "Chess.com"]
[Date "2023.05.21"]
[Round "-"]
[White "RichardABates"]
[Black "MJMykh"]
[Result "1-0"]
[WhiteElo "2134"]
[BlackElo "1101"]
[TimeControl "300"]
[EndTime "1:39:23 PDT"]
[Termination "RichardABates won by checkmate"]

1. d4 {[%clk 0:04:58.5]} 1... d5 {[%clk 0:04:55.8]} 2. c4 {[%clk 0:04:57.1]}
2... dxc4 {[%clk 0:04:54.7]} 3. e4 {[%clk 0:04:54.7]} 3... Nc6 {[%clk
0:04:53.9]} 4. Nf3 {[%clk 0:04:50.4]} 4... Nf6 {[%clk 0:04:53]} 5. e5 {[%clk
0:04:45.8]} 5... Ng8 {[%clk 0:04:48.9]} 6. Bxc4 {[%clk 0:04:43.9]} 6... f6
{[%clk 0:04:48]} 7. O-O {[%clk 0:04:34.7]} 7... fxe5 {[%clk 0:04:46.7]} 8. dxe5
{[%clk 0:04:31.7]} 8... Qxd1 {[%clk 0:04:45.5]} 9. Rxd1 {[%clk 0:04:30.4]} 9...
Bg4 {[%clk 0:04:43.5]} 10. Bd5 {[%clk 0:04:24.3]} 10... Bxf3 {[%clk 0:04:40.8]}
11. Bxf3 {[%clk 0:04:22.6]} 11... e6 {[%clk 0:04:34.4]} 12. Nc3 {[%clk 0:04:14]}
12... Nge7 {[%clk 0:04:31.5]} 13. Bf4 {[%clk 0:04:11.3]} 13... Nf5 {[%clk
0:04:30.2]} 14. Bxc6+ {[%clk 0:04:05.1]} 14... bxc6 {[%clk 0:04:28]} 15. Rac1
{[%clk 0:04:04]} 15... Bb4 {[%clk 0:04:26.6]} 16. Ne4 {[%clk 0:04:01.5]} 16...
c5 {[%clk 0:04:23.1]} 17. Nxc5 {[%clk 0:03:59.5]} 17... Bxc5 {[%clk 0:04:22.5]}
18. Rxc5 {[%clk 0:03:58.2]} 18... Rc8 {[%clk 0:04:21.8]} 19. Rc6 {[%clk
0:03:54]} 19... O-O {[%clk 0:04:12.5]} 20. g3 {[%clk 0:03:49.2]} 20... Rfe8
{[%clk 0:04:07.8]} 21. Rd7 {[%clk 0:03:47.3]} 21... Re7 {[%clk 0:04:05.1]} 22.
Rxe7 {[%clk 0:03:43.5]} 22... Nxe7 {[%clk 0:04:04.1]} 23. Rxe6 {[%clk
0:03:42.6]} 23... Nd5 {[%clk 0:04:03.4]} 24. Bd2 {[%clk 0:03:31.4]} 24... h6
{[%clk 0:03:58.6]} 25. f4 {[%clk 0:03:27.4]} 25... Kf7 {[%clk 0:03:51.7]} 26.
Ra6 {[%clk 0:03:24]} 26... Ra8 {[%clk 0:03:49.6]} 27. f5 {[%clk 0:03:19.3]}
27... Ne7 {[%clk 0:03:45.7]} 28. g4 {[%clk 0:03:16.4]} 28... c6 {[%clk
0:03:42.1]} 29. Bc3 {[%clk 0:03:11.1]} 29... g6 {[%clk 0:03:37]} 30. e6+ {[%clk
0:03:08.8]} 30... Kf8 {[%clk 0:03:34.6]} 31. f6 {[%clk 0:03:06.7]} 31... Nd5
{[%clk 0:03:32.4]} 32. Rxc6 {[%clk 0:03:05.1]} 32... Nxc3 {[%clk 0:03:31.1]} 33.
bxc3 {[%clk 0:03:03.3]} 33... a5 {[%clk 0:03:29.2]} 34. Rc7 {[%clk 0:03:01.5]}
34... Ke8 {[%clk 0:03:28.3]} 35. Rh7 {[%clk 0:02:59.5]} 35... Ra6 {[%clk
0:03:24.2]} 36. Rh8# {[%clk 0:02:57.6]} 1-0

[Event "Live Chess"]
[Site "Chess.com"]
[Date "2023.05.21"]
[Round "-"]
[White "wadsy27"]
[Black "Duke_of_Bebington"]
[Result "1-0"]
[WhiteElo "2568"]
[BlackElo "1589"]
[TimeControl "300"]
[EndTime "1:39:31 PDT"]
[Termination "wadsy27 won by resignation"]

1. Nf3 {[%clk 0:04:57.6]} 1... d5 {[%clk 0:04:57.2]} 2. g3 {[%clk 0:04:56.7]}
2... Nf6 {[%clk 0:04:55]} 3. Bg2 {[%clk 0:04:55.9]} 3... Bf5 {[%clk 0:04:51.6]}
4. c4 {[%clk 0:04:54.1]} 4... c6 {[%clk 0:04:49.5]} 5. Qb3 {[%clk 0:04:53]} 5...
Qb6 {[%clk 0:04:45.2]} 6. d3 {[%clk 0:04:52.2]} 6... e6 {[%clk 0:04:37.6]} 7.
Be3 {[%clk 0:04:49.9]} 7... Qxb3 {[%clk 0:04:35.5]} 8. axb3 {[%clk 0:04:48.7]}
8... Nbd7 {[%clk 0:04:32]} 9. Nh4 {[%clk 0:04:45.5]} 9... Bg6 {[%clk 0:04:29.9]}
10. Bd4 {[%clk 0:04:27]} 10... e5 {[%clk 0:04:13.2]} 11. Bc3 {[%clk 0:04:26]}
11... Bc5 {[%clk 0:03:54.6]} 12. b4 {[%clk 0:04:14.9]} 12... Bb6 {[%clk
0:03:52.1]} 13. Nxg6 {[%clk 0:03:59.6]} 13... hxg6 {[%clk 0:03:50.2]} 14. e3
{[%clk 0:03:38.9]} 14... e4 {[%clk 0:03:35.9]} 15. dxe4 {[%clk 0:03:22.6]} 15...
dxc4 {[%clk 0:03:32.3]} 16. Nd2 {[%clk 0:03:19.6]} 16... O-O-O {[%clk
0:03:26.4]} 17. Nxc4 {[%clk 0:03:16.4]} 17... Rhe8 {[%clk 0:03:18.1]} 18. Nd6+
{[%clk 0:03:12.5]} 18... Kb8 {[%clk 0:03:11]} 19. Nxe8 {[%clk 0:03:11.5]} 19...
Rxe8 {[%clk 0:03:10.1]} 20. O-O {[%clk 0:03:11.4]} 20... Nxe4 {[%clk 0:03:08.4]}
21. Bxe4 {[%clk 0:03:09.7]} 21... Rxe4 {[%clk 0:03:06.9]} 22. Rad1 {[%clk
0:03:07.1]} 22... Nf6 {[%clk 0:03:01.7]} 23. Bxf6 {[%clk 0:03:04.1]} 23... gxf6
{[%clk 0:03:00]} 24. Rd7 {[%clk 0:02:59.2]} 24... Rxb4 {[%clk 0:02:57.7]} 25.
Rxf7 {[%clk 0:02:55.3]} 1-0

[Event "Live Chess"]
[Site "Chess.com"]
[Date "2023.05.21"]
[Round "-"]
[White "ranvir123"]
[Black "Leonid_Starozhilov"]
[Result "0-1"]
[WhiteElo "932"]
[BlackElo "2661"]
[TimeControl "300"]
[EndTime "1:39:33 PDT"]
[Termination "Leonid_Starozhilov won by checkmate"]

1. e4 {[%clk 0:04:57.8]} 1... c5 {[%clk 0:04:59]} 2. Nf3 {[%clk 0:04:51.7]} 2...
e6 {[%clk 0:04:57.3]} 3. d4 {[%clk 0:04:50.7]} 3... cxd4 {[%clk 0:04:56.1]} 4.
Nxd4 {[%clk 0:04:48.5]} 4... a6 {[%clk 0:04:54.8]} 5. Nc3 {[%clk 0:04:47]} 5...
b5 {[%clk 0:04:52.9]} 6. Bf4 {[%clk 0:04:43.6]} 6... Bb7 {[%clk 0:04:51.8]} 7.
Qf3 {[%clk 0:04:35.6]} 7... Nf6 {[%clk 0:04:47.5]} 8. Bd3 {[%clk 0:04:22.6]}
8... Nc6 {[%clk 0:04:40.5]} 9. Nxc6 {[%clk 0:04:20.6]} 9... Bxc6 {[%clk
0:04:39.5]} 10. O-O-O {[%clk 0:04:16.3]} 10... b4 {[%clk 0:04:36.2]} 11. Ne2
{[%clk 0:04:09.7]} 11... Qa5 {[%clk 0:04:33.9]} 12. Kb1 {[%clk 0:03:50.7]} 12...
Be7 {[%clk 0:04:27]} 13. c3 {[%clk 0:03:36.8]} 13... O-O {[%clk 0:04:14.6]} 14.
cxb4 {[%clk 0:03:32.4]} 14... Qxb4 {[%clk 0:04:11.8]} 15. Nc3 {[%clk 0:03:29.7]}
15... d5 {[%clk 0:04:00]} 16. exd5 {[%clk 0:03:24.3]} 16... Nxd5 {[%clk
0:03:58.5]} 17. Nxd5 {[%clk 0:03:15]} 17... Bxd5 {[%clk 0:03:57.2]} 18. Qh3
{[%clk 0:03:01]} 18... g6 {[%clk 0:03:53.3]} 19. Bd2 {[%clk 0:02:55.9]} 19...
Qa4 {[%clk 0:03:50.1]} 20. a3 {[%clk 0:02:41.9]} 20... Bxa3 {[%clk 0:03:47.8]}
21. bxa3 {[%clk 0:02:38.2]} 21... Qb3+ {[%clk 0:03:45.1]} 22. Kc1 {[%clk
0:02:30.4]} 22... Rfc8+ {[%clk 0:03:43.5]} 23. Bc3 {[%clk 0:01:43.6]} 23...
Qxc3+ {[%clk 0:03:41.8]} 24. Kb1 {[%clk 0:01:37.7]} 24... Rab8+ {[%clk
0:03:40.8]} 25. Bb5 {[%clk 0:01:10.5]} 25... Rxb5# {[%clk 0:03:40.7]} 0-1